bitfinex/quotes_BTCUSD_20260101
["timestamp","ask_amount","ask_price","bid_price","bid_amount"]
[1767269179313,0.04958202,88060.0,88056.0,0.0113564]
[1767269179529,0.04958202,88060.0,88055.0,0.02271653]
[1767269179735,0.04958202,88060.0,88056.0,0.0113564]
[1767269180538,0.04958202,88060.0,88055.0,0.01136]
[1767269181152,0.04958202,88060.0,88054.0,0.01135666]
[1767269181549,0.04958202,88060.0,88055.0,0.01135653]
[1767269181753,0.04958202,88060.0,88054.0,0.01135666]
[1767269182086,0.04958202,88060.0,88055.0,0.01135653]
[1767269182935,0.04958202,88060.0,88056.0,0.0113564]
[1767269183578,0.05096837,88067.0,88056.0,0.0113564]
[1767269186658,0.05096837,88067.0,88055.0,0.01135653]
[1767269187003,0.05096837,88067.0,88056.0,0.0113564]
[1767269189138,0.05096837,88055.0,88046.0,0.02271769]
[1767269189343,0.12730021,88054.0,88050.0,0.01135718]
[1767269189541,0.05096837,88055.0,88049.0,0.01135731]
[1767269189782,0.05096837,88055.0,88051.0,0.01135705]
[1767269190515,0.05096837,88055.0,88052.0,0.01135692]
[1767269191016,0.05096837,88055.0,88051.0,0.01135705]
[1767269191423,0.05096837,88055.0,88050.0,0.01135718]
[1767269191979,0.05096837,88055.0,88051.0,0.01135705]
[1767269192308,0.05096837,88055.0,88050.0,0.01135718]
[1767269192985,0.05096837,88055.0,88051.0,0.01135705]
[1767269193328,0.05096837,88055.0,88050.0,0.01135718]
[1767269193543,0.05096837,88055.0,88051.0,0.01135705]
[1767269193933,0.05096837,88055.0,88050.0,0.01135718]
[1767269194635,0.17826858,88054.0,88051.0,0.01135705]
[1767269194854,0.17826858,88054.0,88050.0,0.01135718]
[1767269195037,0.000549,88050.0,88049.0,0.01135731]
[1767269195251,0.05096837,88053.0,88049.0,0.01135731]
[1767269195441,0.05096837,88053.0,88048.0,0.01135744]
[1767269197579,0.05096837,88053.0,88047.0,0.01135757]
[1767269197729,0.05096837,88053.0,88048.0,0.01135744]
[1767269201611,0.000549,88048.0,88046.0,0.01136]
[1767269201947,0.05096837,88053.0,88046.0,0.01136]
[1767269202553,0.05096837,88053.0,88044.0,0.0001801]
[1767269202800,0.001099,88046.0,88044.0,0.0001801]
[1767269202968,0.05096837,88053.0,88044.0,0.0001801]
[1767269204487,0.05096837,88053.0,88044.0,1e-07]
[1767269207373,0.05096837,88053.0,88041.0,0.00051559]
[1767269207374,0.05096837,88053.0,88038.0,0.01135873]
[1767269207375,0.05096837,88051.0,88024.0,0.04666275]
[1767269207544,0.05096837,88051.0,88033.0,6.82e-05]
[1767269207750,0.05096837,88051.0,88033.0,0.01142757]
[1767269207942,0.05096837,88051.0,88034.0,0.01135924]
[1767269208252,0.05096837,88051.0,88035.0,0.01135911]
[1767269208821,0.05096837,88051.0,88037.0,0.01135886]
[1767269209035,0.05096837,88051.0,88036.0,0.01135898]
[1767269209254,0.05096837,88051.0,88033.0,0.05686485]
[1767269209470,0.05096837,88051.0,88036.0,0.01135898]
[1767269209849,0.05096837,88051.0,88035.0,0.01135911]
[1767269210187,0.05096837,88051.0,88037.0,0.01135886]
[1767269210639,0.05096837,88051.0,88036.0,0.01135898]
[1767269210847,0.05096837,88051.0,88037.0,0.01135886]
[1767269211047,0.05096837,88051.0,88036.0,0.01135898]
[1767269211252,0.05096837,88051.0,88037.0,0.01135886]
[1767269211458,0.05096837,88051.0,88036.0,0.01135898]
[1767269211674,0.05096837,88051.0,88037.0,0.01135886]
[1767269212801,0.05096837,88051.0,88036.0,0.01135898]
[1767269215614,0.05096837,88051.0,88035.0,0.01135911]
[1767269215767,0.05096837,88051.0,88036.0,0.01135898]
[1767269216642,0.05096837,88051.0,88033.0,0.01142757]
[1767269216836,0.05096837,88051.0,88033.0,6.82e-05]
[1767269217020,0.05096837,88051.0,88034.0,0.01135924]
[1767269217441,0.05096837,88051.0,88033.0,6.82e-05]
[1767269217442,0.05096837,88051.0,88033.0,0.01142757]
[1767269217771,0.12730021,88040.0,88033.0,6.82e-05]
[1767269218049,0.12730021,88040.0,88033.0,0.01142757]
[1767269219644,0.12730021,88040.0,88033.0,6.82e-05]
[1767269220432,6.8e-05,88033.0,88026.0,0.02286837]
[1767269220645,6.8e-05,88033.0,88026.0,0.0115081]
[1767269220861,0.05079609,88035.0,88027.0,0.01136015]
[1767269221021,0.05079609,88035.0,88026.0,0.01150837]
[1767269221465,0.05079609,88035.0,88027.0,0.01136015]
[1767269221841,0.05079609,88035.0,88026.0,0.01150837]
[1767269222045,0.05079609,88035.0,88027.0,0.01136015]
[1767269222245,0.05079609,88035.0,88026.0,0.01150837]
[1767269222475,0.05079609,88035.0,88027.0,0.01136015]
[1767269222697,0.05079609,88035.0,88026.0,0.01150837]
[1767269223034,0.05079609,88035.0,88027.0,0.01136015]
[1767269223533,0.05079609,88035.0,88026.0,0.01150837]
[1767269223757,0.05079609,88035.0,88027.0,0.01136015]
[1767269223954,0.05079609,88035.0,88028.0,0.01136002]
[1767269224935,0.05079609,88035.0,88027.0,0.01136015]
[1767269225343,0.05079609,88035.0,88029.0,0.01135989]
[1767269225554,0.05079609,88035.0,88027.0,0.06816082]
[1767269225756,0.05079609,88035.0,88029.0,0.01135989]
[1767269226050,0.05079609,88035.0,88028.0,0.01136002]
[1767269226560,0.05079609,88035.0,88029.0,0.01135989]
[1767269227864,0.01136,88038.0,88030.0,0.01135976]
[1767269228177,0.01136,88038.0,88035.0,0.00018]
[1767269228359,0.01136,88038.0,88033.0,0.01135937]
[1767269230756,0.01118,88038.0,88033.0,0.01135937]
[1767269231608,0.12730021,88037.0,88034.0,0.01135924]
[1767269232609,0.12730021,88037.0,88033.0,0.01135937]
[1767269233611,0.12730021,88037.0,88034.0,0.01135924]
[1767269234049,0.12730021,88037.0,88033.0,0.01135937]
[1767269234247,0.12730021,88037.0,88034.0,0.01135924]
[1767269234448,0.12730021,88037.0,88033.0,0.01135937]
[1767269236157,0.12730021,88037.0,88034.0,0.01135924]
[1767269236507,0.12730021,88037.0,88033.0,0.01135937]
[1767269236721,0.12730021,88037.0,88034.0,0.01135924]
[1767269238453,0.12730021,88037.0,88033.0,0.01135937]
[1767269238650,0.12730021,88037.0,88034.0,0.01135924]
[1767269239507,0.12730021,88037.0,88033.0,0.01135937]
[1767269239728,0.12730021,88037.0,88034.0,0.01135924]
[1767269239856,0.12730021,88037.0,88033.0,0.01135937]
[1767269240229,0.12730021,88037.0,88032.0,0.0113595]
[1767269240437,0.12730021,88037.0,88033.0,0.01135937]
[1767269241183,0.12730021,88037.0,88032.0,0.0113595]
[1767269242116,0.12730021,88037.0,88033.0,0.01135937]
[1767269242659,0.12730021,88037.0,88032.0,0.0113595]
[1767269243083,0.12730021,88037.0,88033.0,0.01135937]
[1767269243263,0.12730021,88037.0,88032.0,0.0113595]
[1767269245479,0.12730021,88037.0,88033.0,0.01135937]
[1767269246227,0.12730021,88037.0,88032.0,0.0113595]
[1767269249755,0.12730021,88037.0,88030.0,0.01135976]
[1767269249973,0.000549,88032.0,88030.0,0.01135976]
[1767269250187,0.12730021,88037.0,88031.0,0.01135963]
[1767269250415,0.12730021,88037.0,88032.0,0.0113595]
[1767269251214,0.000549,88032.0,88029.0,0.01135989]
[1767269251771,0.12730021,88037.0,88030.0,0.01135976]
[1767269252374,0.000549,88030.0,88028.0,0.06815951]
[1767269252577,0.000549,88030.0,88028.0,0.01136002]
[1767269253016,0.12730021,88037.0,88029.0,0.01135989]
[1767269253233,0.12730021,88037.0,88028.0,0.01136002]
[1767269253865,0.12730021,88037.0,88028.0,0.06815988]
[1767269254289,0.12730021,88037.0,88030.0,0.01135976]
[1767269254465,0.12730021,88037.0,88031.0,0.01135963]
[1767269254845,0.12730021,88037.0,88030.0,0.01135976]
[1767269255027,0.12730021,88037.0,88031.0,0.01135963]
[1767269255477,0.12730021,88037.0,88032.0,0.0113595]
[1767269256120,0.12730021,88037.0,88031.0,0.01135963]
[1767269256459,0.12730021,88037.0,88026.0,0.05694898]
[1767269256692,0.01136,88048.0,88037.0,0.01135886]
[1767269256892,0.03525143,88047.0,88038.0,0.52333589]
[1767269257089,0.01066932,88046.0,88040.0,0.01135847]
[1767269257290,0.000549,88040.0,88038.0,0.01135873]
[1767269257489,0.02458211,88044.0,88038.0,0.01135873]
[1767269257727,0.02458211,88043.0,88040.0,0.01135847]
[1767269257913,0.01136,88048.0,88040.0,0.01135847]
[1767269258100,0.02458007,88047.0,88040.0,0.01135847]
[1767269258521,0.02458007,88047.0,88039.0,0.0113586]
[1767269258727,0.02458007,88047.0,88040.0,0.01135847]
[1767269259030,0.02458007,88047.0,88038.0,0.01135873]
[1767269259428,0.02458007,88047.0,88039.0,0.0113586]
[1767269259649,0.02458007,88047.0,88038.0,0.01135873]
[1767269259854,0.02458007,88047.0,88039.0,0.0113586]
[1767269260052,0.02458007,88047.0,88038.0,0.01135873]
[1767269260252,0.02458007,88047.0,88037.0,0.52333602]
[1767269260806,0.02458007,88047.0,88037.0,0.51197716]
[1767269262078,0.000549,88037.0,88033.0,0.01135937]
[1767269262251,0.000549,88037.0,88031.0,0.02271963]
[1767269262430,0.000549,88037.0,88033.0,0.01135937]
[1767269262640,0.04874161,88045.0,88033.0,0.01135937]
[1767269263252,0.04874161,88045.0,88034.0,0.01135924]
[1767269263460,0.04874161,88045.0,88035.0,0.01135911]
[1767269264065,0.04874161,88045.0,88034.0,0.01135924]
[1767269264288,0.04874161,88045.0,88035.0,0.01135911]
[1767269264488,0.04874161,88045.0,88035.0,0.52333627]
[1767269264693,0.04874161,88045.0,88036.0,0.01135898]
[1767269266201,0.04874161,88045.0,88035.0,0.01135911]
[1767269266596,0.04874161,88045.0,88036.0,0.01135898]
[1767269267450,0.04874161,88045.0,88035.0,0.01135911]
[1767269267808,0.04874161,88045.0,88036.0,0.01135898]
[1767269268234,0.04874161,88045.0,88035.0,0.01135911]
[1767269268559,0.04874161,88045.0,88034.0,0.01135924]
[1767269269056,0.04874161,88045.0,88035.0,0.01135911]
[1767269269410,0.04874161,88045.0,88036.0,0.01135898]
[1767269269913,0.04874161,88045.0,88032.0,0.07951647]
[1767269269914,0.000549,88036.0,88028.0,0.01136002]
[1767269270141,0.000549,88036.0,88021.0,0.04919195]
[1767269270142,0.04874161,88034.0,88032.0,0.01136]
[1767269270662,0.04874161,88034.0,88028.0,0.01136]
[1767269271022,0.01135757,88047.0,88028.0,0.01136]
[1767269271023,0.04874161,88046.0,88028.0,0.01136]
[1767269271206,0.04874161,88044.0,88028.0,0.01136]
[1767269271402,0.04874161,88042.0,88028.0,0.01136]
[1767269271654,0.04874161,88040.0,88028.0,0.01136]
[1767269272015,0.04874161,88040.0,88028.0,0.010811]
[1767269275465,0.04994167,88039.0,88028.0,0.010811]
[1767269277193,0.04994167,88039.0,88029.0,0.51197716]
[1767269277374,0.04994167,88039.0,88028.0,0.010811]
[1767269278612,0.12730021,88035.0,88028.0,0.010811]
[1767269282072,0.04994167,88039.0,88028.0,0.010811]
[1767269282473,0.04994167,88039.0,88028.0,0.02217102]
[1767269282809,0.01136,88041.0,88029.0,0.52333705]
[1767269284030,0.01136,88041.0,88030.0,0.01135976]
[1767269284225,0.01136,88041.0,88029.0,0.52333705]
[1767269284452,0.01136,88041.0,88029.0,0.51197716]
[1767269284663,0.06130167,88041.0,88029.0,0.52333705]
[1767269285145,0.06130167,88041.0,88029.0,0.51197716]
[1767269285349,0.06130167,88041.0,88029.0,0.52333705]
[1767269287368,0.06130167,88041.0,88029.0,0.01135989]
[1767269287574,0.06130167,88041.0,88030.0,0.51197716]
[1767269288361,0.06130167,88041.0,88029.0,0.01135989]
[1767269288540,0.06130167,88041.0,88030.0,0.52333692]
[1767269289904,0.06130167,88041.0,88030.0,0.51197716]
[1767269291254,0.06130167,88041.0,88030.0,0.52333692]
[1767269291607,0.06130167,88041.0,88030.0,0.51197716]
[1767269298322,0.06130167,88041.0,88029.0,0.01135989]
[1767269298530,0.06130167,88041.0,88030.0,0.51197716]
[1767269304541,0.06130167,88041.0,88028.0,0.010811]
[1767269304742,0.06130167,88041.0,88028.0,0.02217102]
[1767269304960,0.06130167,88041.0,88028.0,0.010811]
[1767269305361,0.06130167,88041.0,88028.0,0.01136]
[1767269306896,0.06130167,88041.0,88028.0,0.02272002]
[1767269308112,0.06130167,88041.0,88028.0,0.01136]
[1767269308360,0.06130167,88041.0,88028.0,0.02272002]
[1767269309708,0.06130167,88041.0,88028.0,0.01136]
[1767269310542,0.06130167,88041.0,88028.0,0.02272002]
[1767269310887,0.06130167,88041.0,88028.0,0.01136]
[1767269311748,0.06130167,88041.0,88028.0,0.02272002]
[1767269312788,0.06130167,88041.0,88028.0,0.01136]
[1767269312981,0.06130167,88041.0,88028.0,0.02272002]
[1767269313342,0.06130167,88041.0,88028.0,0.01136]
[1767269314953,0.06130167,88041.0,88028.0,0.02272002]
[1767269315964,0.06130167,88041.0,88028.0,0.01136]
[1767269317114,0.06130167,88041.0,88028.0,0.02272002]
[1767269318533,0.06130167,88041.0,88028.0,0.01136]
[1767269318916,0.06130167,88041.0,88028.0,0.02272002]
[1767269319312,0.06130167,88041.0,88028.0,0.01136]
[1767269321350,0.06130167,88041.0,88028.0,0.02272002]
[1767269321531,0.06130167,88041.0,88028.0,0.01136]
[1767269322208,0.06130167,88041.0,88028.0,0.02272002]
[1767269322721,0.06130167,88041.0,88028.0,0.01136]
[1767269322905,0.06130167,88041.0,88028.0,0.02272002]
[1767269323554,0.06130167,88041.0,88029.0,0.01136]
[1767269324656,0.12730021,88035.0,88024.0,0.06816264]
[1767269324882,0.12730021,88035.0,88029.0,0.01136]
[1767269328515,0.12730021,88035.0,88026.0,0.01136027]
[1767269328721,0.12730021,88035.0,88027.0,0.02272015]
[1767269329165,0.12730021,88035.0,88027.0,0.01136]
[1767269329341,0.12730021,88035.0,88027.0,0.02272015]
[1767269329681,0.12730021,88035.0,88027.0,0.01136]
[1767269329898,0.12730021,88035.0,88027.0,0.02272015]
[1767269330238,0.12730021,88035.0,88027.0,0.01136]
[1767269333053,0.12730021,88035.0,88026.0,0.01136027]
[1767269333412,0.12730021,88035.0,88025.0,0.0113604]
[1767269333608,0.12730021,88035.0,88026.0,0.01136]
[1767269333811,0.12730021,88035.0,88026.0,0.02272027]
[1767269334312,0.12730021,88035.0,88026.0,0.01136]
[1767269335395,0.12730021,88035.0,88026.0,0.02272027]
[1767269337284,0.12730021,88035.0,88026.0,0.01136]
[1767269337480,0.12730021,88035.0,88026.0,0.02272027]
[1767269338288,0.12730021,88035.0,88026.0,0.01136]
[1767269338829,0.12730021,88035.0,88026.0,0.02272027]
[1767269339072,0.12730021,88035.0,88026.0,0.01136]
[1767269339651,0.12730021,88035.0,88026.0,0.02272027]
[1767269339856,0.12730021,88035.0,88027.0,0.01136]
[1767269340071,0.12730021,88035.0,88027.0,0.02272015]
[1767269340703,0.12730021,88035.0,88027.0,0.01136]
[1767269343343,0.12730021,88035.0,88027.0,0.02272015]
[1767269343509,0.12730021,88035.0,88027.0,0.01136]
[1767269345238,0.12730021,88035.0,88027.0,0.02272015]
[1767269347092,0.12730021,88035.0,88027.0,0.01136]
[1767269347549,0.12730021,88035.0,88027.0,0.02272015]
[1767269347821,0.12730021,88035.0,88027.0,0.01136]
[1767269348685,0.12730021,88035.0,88027.0,0.02272015]
[1767269348931,0.12730021,88035.0,88027.0,0.01136]
[1767269349528,0.12730021,88035.0,88026.0,0.01136027]
[1767269349724,0.12730021,88035.0,88028.0,0.01136]
[1767269350546,0.12730021,88035.0,88028.0,0.02272002]
[1767269350745,0.12730021,88035.0,88028.0,0.01136]
[1767269353255,0.12730021,88035.0,88028.0,0.02272002]
[1767269353683,0.12730021,88035.0,88028.0,0.01136]
[1767269355485,0.12730021,88035.0,88028.0,0.02272002]
[1767269355691,0.12730021,88035.0,88028.0,0.01136]
[1767269356694,0.12730021,88035.0,88028.0,0.02272002]
[1767269358294,0.12730021,88035.0,88029.0,0.01136]
[1767269359704,0.04864982,88047.0,88029.0,0.01136]
[1767269359901,0.0106692,88046.0,88037.0,0.52335339]
[1767269360173,0.13796841,88045.0,88041.0,0.01135834]
[1767269360382,0.12730021,88045.0,88041.0,0.01135834]
[1767269360594,0.12730021,88045.0,88042.0,0.01135821]
[1767269360798,0.12730021,88045.0,88040.0,0.01135847]
[1767269360946,0.12730021,88045.0,88038.0,0.05673262]
[1767269361530,0.12730021,88045.0,88040.0,0.01135847]
[1767269361966,0.12730021,88045.0,88038.0,0.05673262]
[1767269362123,0.12730021,88045.0,88038.0,0.02259839]
[1767269362508,0.12730021,88045.0,88040.0,0.01135847]
[1767269362703,0.12730021,88045.0,88038.0,0.02259839]
[1767269363538,0.12730021,88045.0,88041.0,0.01135834]
[1767269365015,0.12730021,88045.0,88040.0,0.01135847]
[1767269365766,0.12730021,88045.0,88041.0,0.01135834]
[1767269366059,0.12730021,88045.0,88042.0,0.01135821]
[1767269369066,0.0001481,88048.0,88044.0,0.01135795]
[1767269369401,0.12730021,88047.0,88042.0,0.06814909]
[1767269369615,0.12730021,88047.0,88042.0,0.01135821]
[1767269369907,0.12730021,88047.0,88043.0,0.01135808]
[1767269370146,0.12730021,88047.0,88042.0,0.06814897]
[1767269370355,0.12730021,88047.0,88043.0,0.01135808]
[1767269370764,0.12730021,88047.0,88042.0,0.01135821]
[1767269371147,0.12730021,88047.0,88043.0,0.01135808]
[1767269371346,0.12730021,88047.0,88042.0,0.01135821]
[1767269371957,0.12730021,88047.0,88043.0,0.01135808]
[1767269372355,0.12730021,88047.0,88042.0,0.01135821]
[1767269372903,0.12730021,88047.0,88043.0,0.01135808]
[1767269373868,0.12730021,88047.0,88042.0,0.01135821]
[1767269376017,0.17839335,88047.0,88043.0,0.01135808]
[1767269377731,0.17839335,88047.0,88042.0,0.01135821]
[1767269381551,0.17839335,88047.0,88043.0,0.01135808]
[1767269382092,0.12730021,88047.0,88043.0,0.01135808]
[1767269382693,0.12730021,88047.0,88042.0,0.01135821]
[1767269382934,0.12730021,88047.0,88043.0,0.01135808]
[1767269383442,0.0001481,88048.0,88044.0,0.01135795]
[1767269383658,0.0001481,88048.0,88043.0,0.01135808]
[1767269384155,0.0001481,88048.0,88044.0,0.01135795]
[1767269384535,0.0001481,88048.0,88043.0,0.01135808]
[1767269384740,0.12730021,88047.0,88043.0,0.01135808]
[1767269385880,0.12730021,88047.0,88044.0,0.01135795]
[1767269386128,0.12730021,88047.0,88043.0,0.01135808]
[1767269386470,0.12730021,88047.0,88044.0,0.01135795]
[1767269386471,0.12736838,88047.0,88044.0,0.01135795]
[1767269387066,0.12736838,88047.0,88043.0,0.01135808]
[1767269387487,0.17846152,88047.0,88043.0,0.01135808]
[1767269388306,0.05116131,88047.0,88043.0,0.01135808]
[1767269388713,0.05116131,88047.0,88044.0,0.01135795]
[1767269389565,6.817e-05,88047.0,88044.0,0.01135795]
[1767269389900,1.7e-07,88047.0,88044.0,0.01135795]
[1767269390487,1.7e-07,88047.0,88045.0,0.05678864]
[1767269390712,0.00051556,88052.0,88045.0,0.05678864]
[1767269390713,0.00051556,88052.0,88049.0,0.06814366]
[1767269390906,0.00051556,88052.0,88051.0,0.05678527]
[1767269391109,3.456e-05,88052.0,88051.0,0.05678527]
[1767269392101,3.456e-05,88052.0,88051.0,0.09926333]
[1767269392742,0.061499,88065.0,88056.0,0.05678204]
[1767269393730,0.01136,88065.0,88060.0,0.01135589]
[1767269394848,0.001099,88060.0,88055.0,0.01135653]
[1767269395390,0.01136,88065.0,88054.0,0.01135666]
[1767269396577,0.01136,88065.0,88055.0,0.01135653]
[1767269397620,0.01136,88065.0,88058.0,0.01135615]
[1767269398743,0.01136,88065.0,88059.0,0.01135602]
[1767269398949,0.01136,88065.0,88057.0,0.01135628]
[1767269399147,0.01136,88065.0,88058.0,0.01135615]
[1767269400113,0.01136,88065.0,88057.0,0.01135628]
[1767269400615,0.01136,88065.0,88058.0,0.01135615]
[1767269400814,0.0001481,88066.0,88063.0,0.0113555]
[1767269401234,0.000549,88063.0,88062.0,0.01135563]
[1767269401751,0.0001481,88066.0,88063.0,0.0113555]
[1767269402050,0.0001481,88066.0,88063.0,0.06813255]
[1767269402167,0.01136,88077.0,88068.0,0.01135486]
[1767269403168,0.01136,88077.0,88069.0,0.01135473]
[1767269403370,0.01136,88077.0,88068.0,0.01135486]
[1767269404115,0.01136,88077.0,88069.0,0.01135473]
[1767269404338,0.01136,88077.0,88071.0,0.01135447]
[1767269404552,0.01136,88077.0,88072.0,0.01135434]
[1767269405348,0.000549,88072.0,88070.0,0.0113546]
[1767269405759,0.01136,88077.0,88070.0,0.0113546]
[1767269405964,0.01136,88077.0,88071.0,0.01135447]
[1767269406520,0.000549,88071.0,88070.0,0.0113546]
[1767269406719,0.01136,88077.0,88072.0,0.01135434]
[1767269406920,0.01136,88077.0,88071.0,0.01135447]
[1767269407677,0.01136,88077.0,88070.0,0.0113546]
[1767269407897,0.01136,88077.0,88071.0,0.01135447]
[1767269408098,0.01136,88077.0,88070.0,0.0113546]
[1767269408255,0.01136,88077.0,88071.0,0.01135447]
[1767269408659,0.01136,88077.0,88070.0,0.0113546]
[1767269408857,0.01136,88077.0,88071.0,0.01135447]
[1767269409285,0.01136,88077.0,88070.0,0.0113546]
[1767269409286,0.000549,88071.0,88070.0,0.0113546]
[1767269409436,0.01136,88077.0,88070.0,0.0113546]
[1767269410563,0.01136,88077.0,88067.0,0.01135499]
[1767269410903,0.01136,88077.0,88070.0,0.0113546]
[1767269411513,0.01136,88077.0,88069.0,0.01135473]
[1767269411722,0.01136,88077.0,88068.0,0.01135486]
[1767269411939,0.01136,88077.0,88070.0,0.0113546]
[1767269412299,0.01136,88077.0,88069.0,0.01135473]
[1767269412503,0.01136,88077.0,88068.0,0.01135486]
[1767269412685,0.01136,88077.0,88069.0,0.01135473]
[1767269413036,0.01136,88077.0,88070.0,0.0113546]
[1767269413236,0.01136,88077.0,88069.0,0.01135473]
[1767269414024,0.01136,88077.0,88060.0,0.01135589]
[1767269414025,0.05028105,88068.0,88060.0,0.01135589]
[1767269414232,0.05028105,88068.0,88059.0,0.01135602]
[1767269414474,0.05028105,88068.0,88060.0,0.01135589]
[1767269415536,0.05028105,88068.0,88061.0,0.01135576]
[1767269415707,0.05028105,88068.0,88062.0,0.01135563]
[1767269415876,0.05028105,88068.0,88061.0,0.01135576]
[1767269416276,0.05028105,88068.0,88060.0,0.01135589]
[1767269416685,0.05028105,88068.0,88059.0,0.01135602]
[1767269417985,0.05028105,88066.0,88058.0,0.51189737]
[1767269418181,0.05028105,88066.0,88059.0,0.01135602]
[1767269418603,0.05028105,88066.0,88058.0,0.01135615]
[1767269419586,0.05028105,88066.0,88059.0,0.01135602]
[1767269420529,0.05028105,88066.0,88060.0,0.01135589]
[1767269421066,0.05028105,88066.0,88059.0,0.01135602]
[1767269421402,0.05028105,88066.0,88058.0,0.01135615]
[1767269421621,0.05028105,88066.0,88059.0,0.01135602]
[1767269422025,0.05028105,88066.0,88058.0,0.01135615]
[1767269422235,0.05028105,88066.0,88059.0,0.01135602]
[1767269423049,0.05028105,88066.0,88058.0,0.01135615]
[1767269423269,0.05028105,88066.0,88059.0,0.01135602]
[1767269425044,0.05028105,88066.0,88060.0,0.01135589]
[1767269425244,0.05028105,88066.0,88059.0,0.01135602]
[1767269425800,0.05028105,88066.0,88060.0,0.01135589]
[1767269425992,0.05028105,88066.0,88061.0,0.01135576]
[1767269426485,0.05028105,88066.0,88062.0,0.01135563]
[1767269427993,0.05028105,88066.0,88061.0,0.01135576]
[1767269428319,0.05028105,88066.0,88062.0,0.01135563]
[1767269428893,0.01136,88070.0,88062.0,0.01135563]
[1767269432658,0.01136,88070.0,88061.0,0.01135576]
[1767269433141,0.01136,88070.0,88062.0,0.01135563]
[1767269433303,0.01136,88070.0,88060.0,0.01135589]
[1767269434241,0.01136,88070.0,88061.0,0.01135576]
[1767269434696,0.01136,88070.0,88062.0,0.01135563]
[1767269434866,0.01136,88070.0,88061.0,0.01135576]
[1767269435215,0.01136,88070.0,88062.0,0.01135563]
[1767269435461,0.01136,88070.0,88061.0,0.01135576]
[1767269435842,0.01136,88070.0,88062.0,0.01135563]
[1767269436459,0.17546553,88067.0,88058.0,0.01135615]
[1767269436683,0.04816532,88067.0,88060.0,0.01135589]
[1767269437152,0.04816532,88067.0,88061.0,0.01135576]
[1767269437351,0.04816532,88067.0,88062.0,0.01135563]
[1767269437547,0.04816532,88067.0,88061.0,0.01135576]
[1767269437747,0.04816532,88067.0,88062.0,0.01135563]
[1767269440660,0.04816532,88067.0,88061.0,0.01135576]
[1767269440914,0.04816532,88067.0,88062.0,0.01135563]
[1767269442740,0.04816532,88067.0,88061.0,0.01135576]
[1767269443286,0.04816532,88067.0,88060.0,0.01135589]
[1767269443534,0.04816532,88067.0,88061.0,0.01135576]
[1767269443711,0.04816532,88067.0,88060.0,0.01135589]
[1767269444092,0.04816532,88067.0,88059.0,0.01135602]
[1767269444293,0.04816532,88067.0,88060.0,0.01135589]
[1767269445103,0.04816532,88067.0,88061.0,0.01135576]
[1767269448475,0.04816532,88067.0,88059.0,0.01135602]
[1767269448678,0.04816532,88067.0,88060.0,0.01135589]
[1767269449468,0.04816532,88067.0,88061.0,0.01135576]
[1767269449767,0.04816532,88067.0,88060.0,0.01135589]
[1767269450021,0.04816532,88067.0,88061.0,0.01135576]
[1767269450584,0.04816532,88067.0,88060.0,0.01135589]
[1767269450787,0.04816532,88067.0,88061.0,0.01135576]
[1767269451881,0.04816532,88067.0,88059.0,0.01135602]
[1767269452080,0.04816532,88067.0,88060.0,0.01135589]
[1767269454014,0.04816532,88067.0,88060.0,0.06813489]
[1767269454395,0.04816532,88067.0,88060.0,0.01135589]
[1767269454594,0.04816532,88067.0,88059.0,0.02271602]
[1767269454791,0.04816532,88067.0,88060.0,0.01135589]
[1767269461538,0.04816532,88067.0,88060.0,0.06813496]
[1767269461899,0.04816532,88067.0,88062.0,0.01135563]
[1767269462079,0.04816532,88067.0,88061.0,0.01135576]
[1767269463339,0.04816532,88067.0,88060.0,0.01135589]
[1767269463950,0.04816532,88067.0,88061.0,0.01135576]
[1767269465689,0.06112531,88073.0,88062.0,0.01135563]
[1767269465877,0.03523842,88072.0,88063.0,0.0113555]
[1767269466086,0.01066537,88071.0,88064.0,0.01135537]
[1767269466314,0.02457305,88072.0,88065.0,0.01135524]
[1767269466443,0.01066554,88071.0,88066.0,0.01135512]
[1767269466651,0.01136,88076.0,88066.0,0.01135512]
[1767269466855,0.01066554,88074.0,88065.0,0.01135524]
[1767269467060,0.01066554,88073.0,88066.0,0.01135512]
[1767269467265,0.02472157,88075.0,88064.0,0.01135537]
[1767269467266,0.01066554,88072.0,88064.0,0.01135537]
[1767269467471,0.01066554,88071.0,88064.0,0.01135537]
[1767269467671,0.0001481,88075.0,88064.0,0.01135537]
[1767269467895,0.01066525,88074.0,88063.0,0.0113555]
[1767269468201,0.01066525,88073.0,88065.0,0.01135524]
[1767269468443,0.0001481,88075.0,88065.0,0.01135524]
[1767269468444,0.07448621,88075.0,88065.0,0.01135524]
[1767269468688,0.03523726,88074.0,88065.0,0.01135524]
[1767269468889,0.01066446,88073.0,88063.0,0.0113555]
[1767269469020,0.07433811,88074.0,88064.0,0.01135537]
[1767269469225,0.01066448,88073.0,88064.0,0.01135537]
[1767269469426,0.04976531,88074.0,88064.0,0.01135537]
[1767269469742,0.01066403,88073.0,88063.0,0.0113555]
[1767269469947,0.04976531,88074.0,88064.0,0.01135537]
[1767269470129,0.01066403,88073.0,88064.0,0.01135537]
[1767269470332,0.04976531,88074.0,88064.0,0.01135537]
[1767269470539,0.01066374,88073.0,88064.0,0.01135537]
[1767269470792,0.04976531,88074.0,88064.0,0.01135537]
[1767269470921,0.01066374,88073.0,88064.0,0.01135537]
[1767269471127,0.04976531,88074.0,88064.0,0.01135537]
[1767269471325,0.01066374,88073.0,88064.0,0.01135537]
[1767269471530,0.04976531,88072.0,88064.0,0.01135537]
[1767269471827,0.04976531,88072.0,88063.0,0.0113555]
[1767269472039,0.04976531,88072.0,88062.0,0.01135563]
[1767269472225,0.0001481,88075.0,88062.0,0.01135563]
[1767269472426,0.0604286,88074.0,88064.0,0.01135537]
[1767269472681,0.01066329,88073.0,88064.0,0.01135537]
[1767269472883,0.04976531,88074.0,88064.0,0.01135537]
[1767269473084,0.01066324,88073.0,88064.0,0.01135537]
[1767269473300,0.04976531,88074.0,88065.0,0.01135524]
[1767269473652,0.04976531,88074.0,88064.0,0.01135537]
[1767269473849,0.04976531,88074.0,88065.0,0.01135524]
[1767269474195,0.0001481,88075.0,88069.0,0.01135473]
[1767269474393,0.0001481,88075.0,88068.0,0.01135486]
[1767269474694,0.0001481,88075.0,88069.0,0.01135473]
[1767269475083,0.0001481,88075.0,88068.0,0.06812908]
[1767269475602,0.0001481,88075.0,88070.0,0.0113546]
[1767269475784,0.0001481,88075.0,88068.0,0.06812908]
[1767269475985,0.0001481,88075.0,88069.0,0.01135473]
[1767269476196,0.0001481,88075.0,88068.0,0.06812908]
[1767269477002,0.0001481,88075.0,88068.0,0.01135486]
[1767269477205,0.0001481,88075.0,88069.0,0.01135473]
[1767269477752,0.0001481,88075.0,88070.0,0.0113546]
[1767269478783,0.0001481,88075.0,88069.0,0.01135473]
[1767269479189,0.0001481,88075.0,88071.0,0.01135447]
[1767269479521,0.0001481,88075.0,88069.0,0.01135473]
[1767269480376,0.0001481,88075.0,88070.0,0.0113546]
[1767269480561,0.04991341,88075.0,88070.0,0.0113546]
[1767269480696,0.04991341,88075.0,88069.0,0.01135473]